Cogmind - Beta 15 @@@ ROGUE MODE // 2025.07.18 @ 22:06:53 Player: Singularius Result: Destroyed by G-67 Veteran with Plasma Rifle Performance ------------- Evolutions (6) 3000 Regions Visited (7) 1400 Robots Destroyed (79) 395 Value Destroyed (2743) 2743 Prototype IDs (8) 160 Alien Tech Used (0) 0 Bonus (1398) 1398 TOTAL SCORE: 9096 Bonus ------- High Alert Combat Kills 64 Follower Combat Kills 590 Registered with UFD 300 Met Optimus in HQ 500 Friendly Fire -56 Cogmind --------- Core Integrity 0/1150 Matter 83/300 Energy 315/315 System Corruption 9% Temperature Cool (0) Movement Walking (330) Ox3 Location -4/Factory Parts ------- > --- POWER (2) -------- Neutrino Core > --- PROPULSION (5) --- Armored Medium Treads Flexi-carbon Leg > --- UTILITY (8) ------ Advanced Heat Sink Large Storage Unit Improved Signal Interpreter Improved Target Analyzer Armor Integrity Analyzer > --- WEAPON (4) ------- Gamma Rifle Hardcell Cannon Heavy Gauss Cannon > --- INVENTORY (15) --- Micro Fission Core Medium Matter Pod (100) Improved Sensor Array Hardcell Cannon Makeshift Hammer Peak State ------------ > --- POWER ------------ Antimatter Reactor Micro Antimatter Reactor > --- PROPULSION ------- Improved Treads Improved Medium Treads Armored Medium Treads Heavy Treads > --- UTILITY ---------- Advanced Heat Sink Advanced Heat Sink Large Storage Unit Improved Signal Interpreter Improved Target Analyzer Armor Integrity Analyzer Improved Medium Armor Plating Advanced Shield Generator > --- WEAPON ----------- Advanced Plasma Rifle Hardcell Cannon Enhanced Hardcell Cannon Enhanced Hardcell Cannon > --- INVENTORY -------- Neutrino Core Micro Fission Core Antimatter Reactor Medium Matter Pod Improved Sensor Array Medium Insulated Plating Gamma Rifle Hardcell Cannon Hardcell Cannon Hardcell Cannon Hardcell Cannon Heavy Gauss Cannon Hypervelocity Mass Driver Improved Grenade Launcher Makeshift Hammer [Rating: 114] Favorites ----------- Power Light Ion Engine Engine Light Ion Engine Power Core Micro Fission Core Reactor Micro Antimatter Reactor Propulsion Aluminum Leg Treads Light Treads Leg Aluminum Leg Wheel Overtuned Huge Scrapsphere Utility Large Storage Unit Device Seismic Detector Storage Large Storage Unit Processor Signal Interpreter Protection Improved Medium Armor Plating Weapon Enhanced Hardcell Cannon Energy Gun Gamma Rifle Ballistic Gun Light Assault Rifle Ballistic Cannon Enhanced Hardcell Cannon Launcher Grenade Launcher Special Weapon Mining Laser Slashing Weapon Great Axe Build | -11 -10 -10 -7 -5 -5 -5 -4 ------- Run | Yrd Mat Sub Scr Fac Was Fac Fac Slots Evolved 12 | . . . . 10 . . 2 Power 1 | . . . . 1 . . . Propulsion 3 | . . . . 3 . . . Utility 6 | . . . . 4 . . 2 Weapon 2 | . . . . 2 . . . Parts Attached 75 | 7 10 . 11 25 5 3 14 Power 11 | 1 1 . 2 3 2 . 2 Engine 6 | 1 1 . 2 2 . . . Core 2 | . . . . 1 . . 1 Reactor 3 | . . . . . 2 . 1 Propulsion 17 | 2 2 . 4 6 1 1 1 Treads 6 | 2 . . . 2 1 1 . Leg 10 | . 2 . 3 4 . . 1 Wheel 1 | . . . 1 . . . . Hover . | . . . . . . . . Flight . | . . . . . . . . Utility 23 | 2 3 . 2 10 1 2 3 Device 11 | 1 2 . . 6 . . 2 Storage 5 | 1 1 . 1 1 . 1 . Processor 4 | . . . 1 2 . 1 . Hackware . | . . . . . . . . Protection 3 | . . . . 1 1 . 1 Artifact . | . . . . . . . . Weapon 24 | 2 4 . 3 6 1 . 8 Energy Gun 2 | . . . . . 1 . 1 Energy Cannon . | . . . . . . . . Ballistic Gun 8 | 2 2 . 1 3 . . . Ballistic Cannon 10 | . . . 1 2 . . 7 Launcher 2 | . 1 . . 1 . . . Special Weapon 1 | . 1 . . . . . . Impact Weapon . | . . . . . . . . Slashing Weapon 1 | . . . 1 . . . . Piercing Weapon . | . . . . . . . . Special Melee Weapon . | . . . . . . . . Unidentified Prototypes 2 | . . . . . . 1 1 Parts Lost 37 | . 6 . . 13 . . 18 Power 5 | . 1 . . 1 . . 3 Propulsion 10 | . 2 . . 5 . . 3 Utility 9 | . 1 . . 4 . . 4 Weapon 13 | . 2 . . 3 . . 8 Highest Loss Streak 15 | . 3 . . 3 . . 15 To Critical Strikes 2 | . . . . . . . 2 Average Backups 13 | 2 11 15 14 11 13 14 13 Power 1 | . . 1 1 3 3 3 2 Propulsion 1 | 1 2 3 3 . . . . Utility 4 | . 3 5 5 4 6 5 2 Weapon 5 | . 4 5 5 4 4 6 7 Tool/Special . | . . . . . . . . Unused Backups 23 | . 1 . 14 . . 2 6 Power 2 | . . . . . . 1 1 Propulsion 1 | . . . 1 . . . . Utility 6 | . . . 4 . . 1 1 Weapon 14 | . 1 . 9 . . . 4 Tool/Special . | . . . . . . . . Average Slot Usage (%) 83 | . 92 98 70 91 85 93 83 Engine 8 | . 9 14 14 5 3 . . Reactor 2 | . . . . . 3 11 7 Treads 9 | . 22 . . . 14 18 17 Leg 15 | . 5 28 27 23 7 3 . Device 6 | . 12 12 1 8 5 4 11 Storage 10 | . 14 14 14 5 5 5 5 Processor 10 | . . . 12 12 17 17 15 Protection 1 | . . . . 4 2 5 3 Ballistic Gun 8 | . 24 28 . 10 5 5 1 Ballistic Cannon 4 | . . . . 9 11 11 13 Peak Build Rating 114 | 7 8 8 19 77 101 104 114 Average Rating 38 | 5 7 7 13 67 84 100 97 On Entrance 38 | . 7 7 8 15 74 101 99 Naked Turns . | . . . . . . . . Heaviest Build 102 | 11 28 26 30 82 89 89 102 Greatest Support 150 | 40 40 20 28 81 127 150 150 Greatest Overweight (x) 25 | . 1 1 1 2 1 . 25 Average Overweight (x) . | . . 1 . . . . . Largest Inventory Capacity 15 | 8 15 15 15 15 15 15 15 Average Capacity 14 | 7 12 15 15 15 15 15 15 Most Carried 15 | 4 15 15 15 15 15 15 15 Average Carried 13 | 2 11 14 14 11 13 14 12 Final Capacity 15 | 8 15 15 15 15 15 15 15 Final Carried 15 | 4 15 15 15 13 15 15 5 Class Distribution -------------------- 63% | Mutant 20% | Scavenger-Tank 5% | Scavenger-Gunner 3% | Derelict-Gunner Dominant Class ---------------- Mutant | -10/Materials Mutant | -10/Subcaves Mutant | -7/Scraptown Derelict-Gunner | -5/Factory Scavenger-Tank | -5/Waste Scavenger-Tank | -5/Factory Scavenger-Tank | -4/Factory Resources | -11 -10 -10 -7 -5 -5 -5 -4 ----------- Run | Yrd Mat Sub Scr Fac Was Fac Fac Matter Collected 2578 | 272 272 18 153 1139 87 168 469 Remotely . | . . . . . . . . Salvage Created 2509 | 94 636 36 . 1148 . 101 494 Parts 127 | 5 44 4 . 54 . 3 17 Haulers Intercepted . | . . . . . . . . Recyclers Shooed 1 | . . . . 1 . . . Parts Field Recycled . | . . . . . . . . Retrieved Matter . | . . . . . . . . Parts Self-Destructed 7 | . . 7 . . . . . Prevented . | . . . . . . . . Kills | -11 -10 -10 -7 -5 -5 -5 -4 ------- Run | Yrd Mat Sub Scr Fac Was Fac Fac Combat Hostiles Destroyed 62 | . 19 2 . 25 . 2 14 Guns 28 | . 16 2 . 7 . 1 2 Cannons 17 | . . . . 5 . 1 11 AOE 16 | . 3 . . 13 . . . Classes Destroyed 9 | 2 3 . . 4 . . . Worker 4 | . 1 . . 2 . . 1 Builder 4 | . . . . 4 . . . Tunneler 3 | 2 . . . 1 . . . Recycler 6 | 1 1 . . 3 . . 1 Swarmer 27 | . 7 2 . 13 . . 5 Grunt 19 | . 12 . . 2 . . 5 Sentry 4 | . . . . 3 . 1 . Hunter 3 | . . . . 3 . . . Programmer 9 | . . . . 4 . 1 4 Best Kill Streak 11 | 3 5 2 . 7 . 1 11 Combat Bots Only 9 | . 5 2 . 5 . 1 9 Max Kills in Single Turn 7 | 1 5 1 . 7 . 1 2 Gunslinging . | . . . . . . . . Exploded 5 | . 3 . . 5 . . . Melee . | . . . . . . . . Uniques/NPCs Destroyed . | . . . . . . . . Combat | -11 -10 -10 -7 -5 -5 -5 -4 -------- Run | Yrd Mat Sub Scr Fac Was Fac Fac Hostile Shots Fired 519 | . 101 7 . 125 . . 286 Missed 105 | . 18 2 . 31 . . 54 Hits 414 | . 83 5 . 94 . . 232 Projectile 414 | . 83 5 . 94 . . 232 AOE 2 | . . . . . . 2 . Critical Strikes 11 | . . . . 5 . . 6 Part Disruptions 1 | . . . . . . . 1 Damage Taken 7489 | . 851 44 . 2184 . 117 4293 Core 1607 | . 217 26 . 194 . . 1170 Absorbed by Shields 334 | . . . . . . . 334 Ignored by Resistances 61 | . . . . . . . 61 Regen/Repaired (Parts) 528 | . . . . . 382 99 47 Core Remaining (%) 60 | 100 . . 2 . . 80 . Volleys Fired 167 | 6 86 4 . 38 . 4 29 Largest 4 | 2 2 2 . 4 . 4 4 Hottest 259 | 40 120 40 . 179 . 224 259 Shots Fired 428 | 12 156 8 . 136 . 13 103 Gun 259 | 12 139 8 . 72 . 6 22 Cannon 149 | . . . . 61 . 7 81 Launcher 4 | . 1 . . 3 . . . Special 16 | . 16 . . . . . . Kinetic 383 | 12 139 8 . 133 . 10 81 Thermal 35 | . 16 . . . . . 19 Explosive 4 | . 1 . . 3 . . . Electromagnetic 6 | . . . . . . 3 3 Robot Hit Streak 16 | 4 16 3 . 14 . 3 6 Robot Miss Streak 7 | 1 4 2 . 3 . 2 7 Penetration Max 1 | . . . . 1 . . . Secondary Targets 2 | . 2 . . . . . . Max Gunslinging Chain 1 | . 1 . . . . . . Shots Hit Robots 236 | 8 89 4 . 79 . 6 50 Core Hits 128 | 5 40 3 . 52 . 3 25 Critical Kills 2 | . . . . . . 1 1 Critical Parts Destroyed 5 | . . . . 4 . . 1 Critical Strikes 26 | . . . . 11 . 1 14 Burn 4 | . . . . . . . 4 Destroy 7 | . . . . 4 . 1 2 Blast 15 | . . . . 7 . . 8 Melee Attacks . | . . . . . . . . Impact . | . . . . . . . . Slashing . | . . . . . . . . Piercing . | . . . . . . . . Sneak Attacks . | . . . . . . . . Combat Hostiles . | . . . . . . . . Follow-up Attacks . | . . . . . . . . Damage Inflicted 7570 | 66 892 36 . 4062 . 224 2290 Guns 2364 | 66 701 36 . 1129 . 81 351 Cannons 3591 | . . . . 1509 . 143 1939 Explosions 1602 | . 178 . . 1424 . . . Melee . | . . . . . . . . Ramming 13 | . 13 . . . . . . Kinetic 5575 | 66 701 36 . 2638 . 195 1939 Thermal 759 | . . . . 431 . . 328 Explosive 1171 | . 178 . . 993 . . . Electromagnetic 52 | . . . . . . 29 23 Impact . | . . . . . . . . Slashing . | . . . . . . . . Piercing . | . . . . . . . . Highest Corruption 9 | . 1 1 1 5 5 5 9 Average Corruption 2 | . 1 1 1 3 5 5 6 Corruption Purged . | . . . . . . . . Corruption Blocked . | . . . . . . . . Effects 79 | . . 1 22 14 11 24 7 Message Errors 18 | . . 1 3 2 2 7 3 Matter Fused 20 | . . . 6 5 4 5 . Heat Flow Errors 18 | . . . 5 6 1 4 2 Energy Discharges 10 | . . . 4 . 3 2 1 Parts Fused 1 | . . . . . . 1 . Data Loss (minor) 6 | . . . 4 . . 2 . Data Loss (major) 1 | . . . . . 1 . . Misfires 1 | . . . . 1 . . . Alerts 3 | . . . . . . 3 . Weapon Failures 1 | . . . . . . . 1 Overload Shots . | . . . . . . . . Overflow Damage 324 | . 1 . . 215 . 17 91 Projectiles 187 | . . . . 79 . 17 91 Explosions 137 | . 1 . . 136 . . . Melee . | . . . . . . . . Knockbacks 35 | . 1 . . 12 . 1 21 Impact 1 | . 1 . . . . . . Kinetic 30 | . . . . 11 . 1 18 Secondary 4 | . . . . 1 . . 3 Self-Inflicted Damage 445 | . . . . 445 . . . Shots 7 | . . . . 7 . . . Rammed 1 | . 1 . . . . . . Targets Rammed 1 | . 1 . . . . . . Kicked . | . . . . . . . . Crushed . | . . . . . . . . Highest Temperature 646 | . 20 . 209 430 198 264 646 Average Temperature 154 | . 6 . 89 164 106 89 258 Received Heat Transfer 1017 | . 345 . . 189 . . 483 Effects 37 | . . . . 9 . . 28 Shutdowns 11 | . . . . 4 . . 7 Energy Bleed 5 | . . . . 1 . . 4 Interference 7 | . . . . 4 . . 3 Matter Decay 2 | . . . . . . . 2 Short Circuit 3 | . . . . . . . 3 Damage (minor) 2 | . . . . . . . 2 Damage (major) 4 | . . . . . . . 4 Damage (core) 3 | . . . . . . . 3 Siege Activations . | . . . . . . . . Martial Activations . | . . . . . . . . Shielding Activations . | . . . . . . . . Robots Disrupted . | . . . . . . . . Combat Hostiles . | . . . . . . . . Robots Corrupted . | . . . . . . . . Combat Hostiles . | . . . . . . . . Parts Fried . | . . . . . . . . Impact Corruptions . | . . . . . . . . Robots Melted 1 | . . . . . . . 1 Combat Hostiles 1 | . . . . . . . 1 Parts Melted 3 | . . . . . . . 3 Heat Transferred 1250 | . . . . 300 . . 950 Parts Sabotaged . | . . . . . . . . Parts Stolen . | . . . . . . . . Parts Stripped . | . . . . . . . . Power Chain Reactions . | . . . . . . . . Alert | -11 -10 -10 -7 -5 -5 -5 -4 ------- Run | Yrd Mat Sub Scr Fac Was Fac Fac Maximum Alert Level 2 | . . . . 2 . 2 1 Low Security (%) 70 | 100 100 . . 57 100 46 . Level 1 18 | . . . . 25 . 17 99 Level 2 10 | . . . . 17 . 36 . Level 3 . | . . . . . . . . Level 4 . | . . . . . . . . Level 5 . | . . . . . . . . High Security . | . . . . . . . . Max Security . | . . . . . . . . Peak Influence 563 | 10 170 . . 500 163 563 363 Initial 257 | . . . . . 163 . 257 Average 147 | 1 46 . . 221 62 264 268 Influence Increases 3132 | 15 543 40 . 929 . 995 610 Destroy 0b10 Robot/C 1520 | . 380 40 . 500 . 260 340 Destroy 0b10 Robot/NC 140 | 15 10 . . 50 . 55 10 Destroy Leader 284 | . 60 . . 80 . 84 60 Allied During Kill 388 | . . . . . . 337 51 Successful Hack 34 | . 8 . . 14 . 12 . Disable Machine 195 | . 15 . . 90 . 45 45 Destroy Structure 511 | . 25 . . 180 . 202 104 Partial Spotted 15 | . 15 . . . . . . Lose Combat Pursuer 45 | . 30 . . 15 . . . Influence Decreases 2777 | 15 407 126 50 462 467 468 782 Entered New Map 690 | . . 66 50 . 304 . 270 Time Decay 1453 | 15 357 60 . 332 163 304 222 Lost Part 360 | . 50 . . 130 . . 180 Lost Ally 274 | . . . . . . 164 110 Squads Dispatched 19 | . 3 . . 6 . 4 6 Investigation 2 | . . . . . . 1 1 Extermination 3 | . . . . 1 . 1 1 Reinforcement 8 | . 3 . . 2 . 2 1 Assault . | . . . . . . . . Garrison 6 | . . . . 3 . . 3 Intercept . | . . . . . . . . Searches Triggered . | . . . . . . . . Construction Impeded 4 | . . . . 2 . 1 1 Haulers Reinforced . | . . . . . . . . Active Scanning Responses . | . . . . . . . . Cargo Convoy Interrupts . | . . . . . . . . Stealth | -11 -10 -10 -7 -5 -5 -5 -4 --------- Run | Yrd Mat Sub Scr Fac Was Fac Fac Distress Signals 3 | . 2 . . . . 1 . Communications Jammed . | . . . . . . . . Distress Signals . | . . . . . . . . Times Spotted 87 | . 30 3 . 29 1 4 20 Peak Tracking Total 7 | . 5 2 . 5 1 2 7 Tactical Retreats 3 | . 2 . . 1 . . . Traps | -11 -10 -10 -7 -5 -5 -5 -4 ------- Run | Yrd Mat Sub Scr Fac Was Fac Fac Traps Triggered 3 | . 1 . . 1 . 1 . Indirectly . | . . . . . . . . Trap Hack Attempts . | . . . . . . . . Triggered . | . . . . . . . . Disarmed . | . . . . . . . . Reprogrammed . | . . . . . . . . Reused . | . . . . . . . . Traps Extracted . | . . . . . . . . Installed . | . . . . . . . . Triggered . | . . . . . . . . Machines | -11 -10 -10 -7 -5 -5 -5 -4 ---------- Run | Yrd Mat Sub Scr Fac Was Fac Fac Machines Disabled 13 | . 1 . . 6 . 3 3 Max in Single Turn 3 | . 1 . . 3 . 1 1 Machines Repaired . | . . . . . . . . Machines Dismantled . | . . . . . . . . Machines Sabotaged . | . . . . . . . . Overloaded Fab Kills . | . . . . . . . . Hacking | -11 -10 -10 -7 -5 -5 -5 -4 --------- Run | Yrd Mat Sub Scr Fac Was Fac Fac Machines Accessed 18 | . 4 . 9 1 . 3 1 Terminals 4 | . 2 . . . . 2 . Fabricators 1 | . . . . 1 . . . Repair Stations 1 | . . . . . . 1 . Recycling Units 3 | . 2 . . . . . 1 Scanalyzers . | . . . . . . . . Garrison Access . | . . . . . . . . Total Hacks 85 | . 12 . 64 1 . 5 3 Successful 73 | . 7 . 64 1 . 1 . Failed 12 | . 5 . . . . 4 3 Catastrophic 1 | . . . . . . 1 . Database Lockouts . | . . . . . . . . Manual 7 | . 3 . . . . 1 3 Terminals 7 | . 4 . . . . 3 . Fabricators 1 | . . . . 1 . . . Repair Stations 2 | . . . . . . 2 . Recycling Units 11 | . 8 . . . . . 3 Scanalyzers . | . . . . . . . . Garrison Access . | . . . . . . . . Terminal Hacks 65 | . 1 . 64 . . . . Record 58 | . . . 58 . . . . Robot Analysis 5 | . . . 5 . . . . Locate Traps 1 | . 1 . . . . . . Proto ID Catalog 1 | . . . 1 . . . . Fabricator Hacks 1 | . . . . 1 . . . Build 1 | . . . . 1 . . . Repair Station Hacks 1 | . . . . . . 1 . Scan Component 1 | . . . . . . 1 . Recycling Unit Hacks 4 | . 4 . . . . . . Report Inventory 2 | . 2 . . . . . . Retrieve Components 2 | . 2 . . . . . . Scanalyzer . | . . . . . . . . Garrison Access Hacks . | . . . . . . . . Unauthorized Hacks 2 | . 2 . . . . . . Terminals 2 | . 2 . . . . . . Botnet 2 | . 2 . . . . . . Fabricators . | . . . . . . . . Repair Stations . | . . . . . . . . Recycling Units . | . . . . . . . . Scanalyzers . | . . . . . . . . Garrison Access . | . . . . . . . . Data Cores Recovered 1 | . . . . . . 1 . Used . | . . . . . . . . Hacking Detections 8 | . 3 . . 1 . 3 1 Full Trace Events 1 | . . . . . . . 1 Feedback Events . | . . . . . . . . Feedback Blocked . | . . . . . . . . Robot Schematics Acquired . | . . . . . . . . Robots Built . | . . . . . . . . Authchips . | . . . . . . . . Time . | . . . . . . . . Total Robot Build Rating . | . . . . . . . . Part Schematics Acquired . | . . . . . . . . Parts Built 2 | . . . . 2 . . . Authchips . | . . . . . . . . Time 69 | . . . . 69 . . . Total Part Build Rating 18 | . . . . 18 . . . Parts Repaired . | . . . . . . . . Time . | . . . . . . . . Parts Recycled . | . . . . . . . . Recycled Matter . | . . . . . . . . Retrieved Matter . | . . . . . . . . Retrieved Components 5 | . 5 . . . . . . Parts Scanalyzed . | . . . . . . . . Part Schematics Acquired . | . . . . . . . . Parts Damaged . | . . . . . . . . Bothacking | -11 -10 -10 -7 -5 -5 -5 -4 ------------ Run | Yrd Mat Sub Scr Fac Was Fac Fac Used RIF Installer . | . . . . . . . . Robots Hacked . | . . . . . . . . Non-combat . | . . . . . . . . Combat . | . . . . . . . . Robot Hacks Applied . | . . . . . . . . Relay Couplers Released . | . . . . . . . . Fabnet Peak Effective % . | . . . . . . . . Robots Rewired . | . . . . . . . . Allies Hacked 2 | . . . . . . . 2 Hacks Repelled . | . . . . . . . . Allies | -11 -10 -10 -7 -5 -5 -5 -4 -------- Run | Yrd Mat Sub Scr Fac Was Fac Fac Total Allies 20 | . . . . . 20 . . Largest Group 20 | . . . . . 20 20 7 Highest-Rated Group 810 | . . . . . 810 799 289 Highest-Rated Ally 50 | . . . . . 50 50 50 Total Orders . | . . . . . . . . Ally Attacks 112 | . . . . . 4 84 24 Total Damage 3994 | . . . . . 103 2993 898 Kills 26 | . . . . . 1 22 3 Allies Corrupted 4 | . . . . . . 2 2 Allies Melted . | . . . . . . . . Intel | -11 -10 -10 -7 -5 -5 -5 -4 ------- Run | Yrd Mat Sub Scr Fac Was Fac Fac Active Infowar (turns) 3466 | 8 1429 127 366 524 . 724 288 Sensors 1536 | . . . . 524 . 724 288 Seismic 1930 | 8 1429 127 366 . . . . Robot Analysis Total 5 | . . . 5 . . . . Derelict Logs Recovered . | . . . . . . . . Drone Launches . | . . . . . . . . Drone Recoveries . | . . . . . . . . Exploration | -11 -10 -10 -7 -5 -5 -5 -4 ------------- Run | Yrd Mat Sub Scr Fac Was Fac Fac Turns Passed 7049 | 90 1636 133 2593 868 449 820 460 Spaces Moved 3749 | 40 647 63 1764 368 252 462 153 Core 10 | 6 . . . . . . 4 Treads 1332 | 34 520 . . . 169 462 147 Legs 2347 | . 127 63 1704 368 83 . 2 Wheels 60 | . . . 60 . . . . Hover . | . . . . . . . . Flight . | . . . . . . . . Fastest Speed 50 | 50 160 190 80 124 163 162 160 Average Speed 156 | 143 167 190 142 170 171 162 192 Slowest Speed 1300 | 160 240 190 190 260 190 163 1300 Overloaded Moves . | . . . . . . . . Propulsion Burnouts . | . . . . . . . . Robots Hopped . | . . . . . . . . Potential Cave-ins . | . . . . . . . . Cave-ins Triggered . | . . . . . . . . Exploration Rate (%) 34 | 3 57 6 94 8 88 11 7 Regions Visited 7 Branch Regions 2 Pre-discovered Areas . | . . . . . . . . Known Exits Taken 2 | . . . 1 . . 1 . Unknown Exits Taken 3 | 1 1 1 . . . . . Scrap Searched 12 | . . . 12 . . . . Spaces Dug 13 | . 13 . . . . . . Terrain Destroyed 153 | . 26 . . 103 . 2 22 Melee . | . . . . . . . . Projectile 64 | . 13 . . 27 . 2 22 AOE 89 | . 13 . . 76 . . . Terrain Rammed . | . . . . . . . . Walls Destroyed . | . . . . . . . . Machines Disabled . | . . . . . . . . Actions | -11 -10 -10 -7 -5 -5 -5 -4 --------- Run | Yrd Mat Sub Scr Fac Was Fac Fac Total 4585 | 60 1035 70 1862 515 268 524 251 Wait 452 | 4 269 2 35 59 4 41 38 Move 3743 | 39 646 62 1763 368 251 461 153 Hop . | . . . . . . . . Pick Up 74 | 4 16 1 20 15 4 6 8 Fast Attach 21 | 7 . . 7 3 2 1 1 Attach 42 | . 5 1 2 19 1 1 13 Detach . | . . . . . . . . Swap 33 | . 9 . 3 13 2 3 3 Drop 51 | . 3 . 32 . 3 7 6 Fire 167 | 6 86 4 . 38 . 4 29 Melee . | . . . . . . . . Ram . | . . . . . . . . Kick . | . . . . . . . . Crush 1 | . 1 . . . . . . Escape Stasis . | . . . . . . . . Rewire 1 | . . . . . 1 . . Trap . | . . . . . . . . Miscellaneous . | . . . . . . . . Route ------- -11/Scrapyard -10/Materials (discovered 2 exits: [*Min] / [*Sub]) -10/Subcaves -7/Scraptown (discovered 2 exits: *Fac x2) -5/Factory -5/Waste -5/Factory -4/Factory History --------- Turn | Location | Event 7 | -11/Scrapyard | Discovered new exit (range 15) 91 | -11/Scrapyard | Entered Materials 199 | -10/Materials | Discovered new exit (range 8) 313 | -10/Materials | Build established: Mutant 425 | -10/Materials | Discovered new exit (range 12) 1307 | -10/Materials | Core integrity fell below 50% 1430 | -10/Materials | Lost 3 parts (1n2w) 1527 | -10/Materials | Core integrity fell below 20% 1727 | -10/Materials | Entered Subcaves 1728 | -10/Subcaves | Shifting Twisted Machinery released Battle Rifle 1728 | -10/Subcaves | Approached by a straggling Scientist 1729 | -10/Subcaves | Scientist uncovered a shortcut to Scraptown 1860 | -10/Subcaves | Entered Scraptown 2412 | -7/Scraptown | Discovered new exit (range 3) 2429 | -7/Scraptown | Identified exit to Factory 2486 | -7/Scraptown | Visited Bundlers 2561 | -7/Scraptown | Visited Cyclists 2594 | -7/Scraptown | Visited Red Mages 2746 | -7/Scraptown | Visited Shadow of the Wyrm 2786 | -7/Scraptown | Visited Cave Peace 2850 | -7/Scraptown | Visited The Evicted 3022 | -7/Scraptown | Visited UFD Registry 3022 | -7/Scraptown | Registered with UFD as "Bulletboard" 3048 | -7/Scraptown | Visited LU-1G1's Boring Crew 3092 | -7/Scraptown | Visited Botcube Research 3113 | -7/Scraptown | Visited Analyses Database 3144 | -7/Scraptown | Visited Derelict Rescue Squad 3174 | -7/Scraptown | Visited Modified Component R&D 3210 | -7/Scraptown | Visited Junk Repository 3314 | -7/Scraptown | Visited DA-N13 Charitable Foundation 3329 | -7/Scraptown | Found DCF Scrap (28 items) 3402 | -7/Scraptown | Visited Science Guys 3489 | -7/Scraptown | Visited Abandonware Association 3519 | -7/Scraptown | Learned abandonware demo "SHUTEYE.EXE" 3519 | -7/Scraptown | Learned abandonware demo "KABOOM.EXE" 3580 | -7/Scraptown | Visited Junk Cannon Lab 4189 | -7/Scraptown | Discovered exit to Factory (range 3) 4324 | -7/Scraptown | Met Optimus 4324 | -7/Scraptown | Accepted into 0bPrime 4452 | -7/Scraptown | Civil war broke out across Scraptown 4453 | -7/Scraptown | Entered Factory 4453 | -5/Factory | Evolved 10 slots: Power x1, Propulsion x3, Utility x4, Weapon x2 4596 | -5/Factory | Fabricated Enh. Hardcell Cannon (x2) 4806 | -5/Factory | Lost 3 parts (2u1w) 4957 | -5/Factory | Discovered new exit (range 15) 5168 | -5/Factory | Lost 3 parts (1p1n1u) 5321 | -5/Factory | Sucked down chute 5321 | -5/Factory | Entered Waste 5322 | -5/Waste | Joined by Warlord forces that had cleared the area 5426 | -5/Waste | Build established: Scavenger-Gunner 5471 | -5/Waste | A Compactor rumbled back to life 5471 | -5/Waste | Spotted C-40 Crusher 5471 | -5/Waste | Allies destroyed C-40 Crusher 5655 | -5/Waste | Discovered new exit (range 12) 5753 | -5/Waste | Identified exit to Factory 5770 | -5/Waste | Entered Factory 5770 | -5/Factory | Accompanied by 20 allies 5807 | -5/Factory | Build established: Scavenger-Tank 5966 | -5/Factory | Lost 5 allies 6317 | -5/Factory | Lost 4 allies 6361 | -5/Factory | Discovered new exit (range 16) 6446 | -5/Factory | Identified exit to Factory 6590 | -5/Factory | Entered another Factory area 6590 | -4/Factory | Accompanied by 7 allies 6590 | -4/Factory | Evolved 2 slots: Utility x2 6836 | -4/Factory | Garrison activated, responded to threat 6861 | -4/Factory | P-70 Sage assimilated allied 78-IR7(l) 6895 | -4/Factory | Lost 4 allies 6951 | -4/Factory | Core integrity fell below 50% 6957 | -4/Factory | Core integrity fell below 20% 6991 | -4/Factory | Destroyed 9 combat bots 6997 | -4/Factory | Lost 15 parts (3p3n4u5w) 7050 | -4/Factory | Destroyed by G-67 Veteran with Plasma Rifle Last Messages --------------- 07011_ Hyp. Mass Driver destroyed. 07015_ Critical hit (Destroy). 07015_ Hardcell Cannon destroyed. 07020_ Acquired 94 matter. 07023_ J2QTL4W,0&PW6/,&#T6UWILWL>7=SUGMAIA5 07023_ Hardcell Cannon destroyed. 07031_ S-27 Virus Lgt. Nuclear Core blasted off. 07031_ S-27 Virus knocked back. 07033_ U-05 Engineer builds a Wall. 07035_ S-27 Virus destroyed. 07038_ S-27 Virus suffers critical hit (Blast). 07038_ Destroyed VTOL Module. 07041_ S-27 Virus destroyed. 07043_ K-01 Serf collects debris. 07044_ Acquired 45 matter. 07046_ U-05 Engineer builds a Door. 07046_ K-01 Serf collects debris. 07048_ Acquired 3 matter. 07050_ K-01 Serf collects debris. 07050_ U-05 Engineer builds a Wall. Map ----- +----------------------------------------------------+ | ?????????????????????????????????????????????????? | | ?????????????????????????????????????????????##### | | ?????????????????????????????????????????????# | | ?????????????????????????????????????????????# | | ?????????????????????????????????????????????# | | ?????????????????????????????????????????????# | | ?????????????????????????????????????????????# | | ?????????????????????????????????????????????# | | ?????????????????????????????????????????????# ? | | ?????????????????????????????????????????????# ??? | | ???????????????????????? ?????????????????????? | | ???????????????????????? "????????????????????? | | ???????????????????????? """ ?????????????????? | | ???????????????????????? """ ?????????????????? | | ????????????????????????# ?????????????????? | | ????????????????????????# ???? ###?????????? | | ????????????????????????# ????? ?????????? | | ????????????????????????# ???? ?????????? | | ????????????????????????# """"??? ?????????? | | ????????????????????????# """""?" ?????? | | ????????????????????????# """""?" ???? | | ????????????????????????# """"""" ??? | | ??????????????# ????????# ??? | | ??????????###+##;;####### k""""""" """"""" | | ??????????# %% g % [ # == """"""" """"""" | | ??????????# [=% %;@ |%""""""" """"""" | | ??????????# % * %#[! %*=" """ """""" | | ?????????#; !u*[* [!% =%= | | ?????????#" #!% %%= """" "" | | ??????????" #%!% = = """"""" | | ??????????###########+###% [%!! % """"""" | | ??????????????????? %"%% ! """""" | | ?????????????????? % % % % | | ???????????????? %! %%= % | | ???????????????### "#### =* | | ?????????????????###### ###+#############+######+# | | ????????????????????? ???? "?# | | ???????????????????? ?????# # | | ???????????????????? """"???????# | | ???????????????????? """"???????# "" | | ????????????????????? ""?????????# """ "" | | ??????????????????????? ???????????# "Y "" | | ????????????????????????? ????????????# """ | | ???????????????????????????????????????# | | ???????????????????????????????????????########### | | | | | | | | | | | +----------------------------------------------------+ Best States ------------- Heat Dissipation 81 Energy Generation 37 Energy Capacity 550 Matter Stores 300 Matter Capacity 400 Sight Range 16 Robot Scan Range 15 Terrain Scan Density 10 Armor Coverage 225 Resistance: EM 20 Evasion (%) 63 Target Analysis 6 Armor Integrity Analysis 30 Recoil Reduction 5 Kinecelleration 30 Item Schematics ----------------- None Robot Schematics ------------------ None Fabricated ------------ Enh. Hardcell Cannon | x2 | -5/Factory | Preloaded Repaired ---------- Nothing Alien Tech Used ----------------- None Achievements -------------- None Challenges ------------ None Game ------ Seed MakeshiftTractorAutogun Manual? 0 Play Time 01:53:24 Cumulative 82.6 hours Start 2025.07.17 @ 09:28:09 End 2025.07.18 @ 22:06:53 Sessions 3 Manual Loads 0 Difficulty Rogue Special Mode None Game No. 57 Rogue 57 Adventurer 0 Explorer 0 Win Type - Total 0 Types 0/0/0/0/0/0/0/0/0/0 Lore% 37 Gallery% 37 Achievement% 31 Wizard Run 0 Options --------- Layout 1 ASCII 0 Keyboard 0 Movement Numpad Keybinds 0 Fullscreen 1 Font 24/Smallcaps Map View 50x35 Zoom Use 0% Tactical HUD 1 Map Filters NONE Filters NONE Steam 1 RUN: 5d27150e-ec6a-4815-91db-3e40a36a17e3